bitfinex/quotes_BTCUSD_20240730
["timestamp","ask_amount","ask_price","bid_price","bid_amount"]
[1722328785083,1.14841033,66976.0,66975.0,0.25696723]
[1722328785488,1.1484158,66976.0,66975.0,0.25696723]
[1722328786395,1.14841708,66976.0,66975.0,0.25696723]
[1722328788312,1.171845,66976.0,66975.0,0.25696723]
[1722328789008,1.171845,66976.0,66975.0,0.55558523]
[1722328789221,1.171845,66976.0,66975.0,0.99660323]
[1722328789620,1.08139671,66976.0,66975.0,0.99660323]
[1722328789880,1.14842385,66976.0,66975.0,1.29522123]
[1722328792166,1.12609655,66976.0,66975.0,1.29522123]
[1722328792615,1.08139671,66976.0,66975.0,1.29522123]
[1722328792829,1.12609655,66976.0,66975.0,1.29522123]
[1722328793188,1.10482435,66976.0,66975.0,1.29522123]
[1722328793470,1.08139671,66976.0,66975.0,1.29522123]
[1722328795836,1.08139671,66976.0,66975.0,1.74447227]
[1722328796010,1.08139671,66976.0,66975.0,1.86857052]
[1722328796250,1.08139671,66976.0,66975.0,1.74447227]
[1722328796420,1.10482321,66976.0,66975.0,1.86856474]
[1722328799464,1.10482321,66976.0,66975.0,1.74447227]
[1722328799668,1.10482321,66976.0,66975.0,1.86856483]
[1722328801074,1.08139671,66976.0,66975.0,1.86856483]
[1722328801649,1.08139671,66976.0,66975.0,1.74447227]
[1722328801858,1.08139671,66976.0,66975.0,1.86856505]
[1722328804424,1.10482335,66976.0,66975.0,1.93659518]
[1722328804629,1.10482335,66976.0,66975.0,2.19713305]
[1722328804828,1.10482335,66976.0,66975.0,2.62775105]
[1722328805032,1.10482335,66976.0,66975.0,2.52665827]
[1722328805231,1.10482335,66976.0,66975.0,2.65073875]
[1722328805636,1.10482335,66976.0,66975.0,2.64173875]
[1722328805837,1.10482335,66976.0,66975.0,2.80643307]
[1722328806042,1.10482335,66976.0,66975.0,2.79443307]
[1722328806189,1.08139671,66976.0,66975.0,2.79443307]
[1722328806390,1.08139671,66976.0,66975.0,2.82243307]
[1722328806687,1.08139671,66976.0,66975.0,2.79443307]
[1722328807735,1.08139671,66976.0,66975.0,2.78043307]
[1722328808045,1.08139671,66976.0,66975.0,2.79443307]
[1722328808241,1.08139671,66976.0,66975.0,2.79443227]
[1722328808884,1.08139671,66976.0,66975.0,2.80843227]
[1722328809660,1.10482019,66976.0,66975.0,2.80843227]
[1722328811397,1.10482019,66976.0,66975.0,2.68435259]
[1722328811593,1.10482019,66976.0,66975.0,2.80843227]
[1722328812034,1.10482019,66976.0,66975.0,2.68435259]
[1722328812248,1.10482019,66976.0,66975.0,2.80842507]
[1722328813970,1.10482019,66976.0,66975.0,2.80842183]
[1722328814541,0.28458196,66976.0,66975.0,2.80842183]
[1722328814758,0.00083,67007.0,66993.0,1.735159]
[1722328814913,0.00083,67007.0,66995.0,0.509743]
[1722328815117,0.00083,67007.0,66995.0,1.99381069]
[1722328815555,0.00083,67007.0,66995.0,1.98211301]
[1722328816113,0.00083,67007.0,66995.0,1.85806536]
[1722328816515,0.00083,67007.0,66995.0,1.87206536]
[1722328816720,0.00083,67007.0,66995.0,1.95953387]
[1722328817378,0.00083,67007.0,66995.0,1.96553387]
[1722328817611,0.00083,67007.0,66995.0,1.94553387]
[1722328818267,0.00083,67007.0,66995.0,1.95953387]
[1722328818684,0.00083,67007.0,66995.0,1.88606536]
[1722328818914,0.00083,67007.0,66995.0,1.89515871]
[1722328820946,0.02424802,66996.0,66995.0,1.74755871]
[1722328821147,0.02424802,66996.0,66995.0,1.74775871]
[1722328822089,0.00083,66996.0,66995.0,1.74775871]
[1722328823969,0.00083,66996.0,66995.0,1.67135871]
[1722328825626,0.00083,66996.0,66995.0,1.96825303]
[1722328826830,0.02424811,66996.0,66995.0,1.96825303]
[1722328829956,0.00083,66996.0,66995.0,1.96825303]
[1722328830379,0.00083,66996.0,66995.0,1.81755871]
[1722328831693,0.00083,66996.0,66995.0,1.82100059]
[1722328832146,0.0242485,66996.0,66995.0,1.82100059]
[1722328832380,0.0242485,66996.0,66995.0,1.94505366]
[1722328832792,0.0242485,66996.0,66995.0,1.82100059]
[1722328833142,0.0242485,66996.0,66995.0,1.94505366]
[1722328833726,0.00083,66996.0,66995.0,1.79758089]
[1722328834093,0.00083,66996.0,66995.0,1.92163396]
[1722328835264,0.00083,66996.0,66995.0,1.92113396]
[1722328838114,0.00083,66996.0,66995.0,1.86023407]
[1722328838683,0.00083,66996.0,66995.0,2.01092839]
[1722328839322,0.00083,66996.0,66995.0,1.86023407]
[1722328841391,0.06303,66996.0,66995.0,1.32577249]
[1722328841791,0.00083,66996.0,66995.0,1.32577249]
[1722328841990,0.00083,66996.0,66995.0,1.32577693]
[1722328842392,0.00083,66996.0,66995.0,1.40157693]
[1722328843058,0.00083,66996.0,66995.0,1.70290429]
[1722328843267,0.00083,66996.0,66995.0,2.06583329]
[1722328843791,0.00083,66996.0,66995.0,2.06582377]
[1722328844003,0.00083,66996.0,66995.0,2.07582377]
[1722328844498,0.00083,66996.0,66995.0,1.95177521]
[1722328844645,0.00083,66996.0,66995.0,2.0758234]
[1722328845130,0.0242485,66996.0,66995.0,2.0758234]
[1722328845934,0.00083,66996.0,66995.0,2.0758234]
[1722328846251,0.00083,66996.0,66995.0,1.92512908]
[1722328847920,0.00083,66996.0,66995.0,1.80108089]
[1722328848110,0.00083,66996.0,66995.0,1.92513232]
[1722328849155,0.00083,66996.0,66995.0,1.86073232]
[1722328850103,0.00083,66996.0,66995.0,1.78493232]
[1722328851291,0.00083,66996.0,66995.0,1.78493939]
[1722328851710,0.00083,66996.0,66995.0,1.66088089]
[1722328851915,0.00083,66996.0,66995.0,1.78493894]
[1722328853172,0.00083,66996.0,66995.0,1.47640994]
[1722328853377,0.00083,66996.0,66995.0,1.46731659]
[1722328853577,0.00083,66996.0,66995.0,1.34325854]
[1722328853777,0.00083,66996.0,66995.0,1.46731879]
[1722328854222,0.08043,66996.0,66995.0,1.46731879]
[1722328854576,0.08043,66996.0,66995.0,1.4673196]
[1722328855404,0.14673,66996.0,66995.0,1.01815756]
[1722328855611,0.14673,66996.0,66995.0,0.34501926]
[1722328855770,0.14673,66996.0,66995.0,0.0417442]
[1722328855975,0.24274291,66996.0,66995.0,0.0417442]
[1722328856179,0.30979486,66996.0,66995.0,0.0417442]
[1722328856406,0.02425042,66996.0,66995.0,0.19237724]
[1722328856608,0.02425042,66996.0,66995.0,1.23722824]
[1722328856813,0.02425042,66996.0,66995.0,1.39124146]
[1722328857006,0.02425042,66996.0,66995.0,1.39124067]
[1722328857247,0.02425042,66996.0,66995.0,1.26717824]
[1722328858174,0.02425042,66996.0,66995.0,1.26717824]
[1722328859637,0.02425042,66996.0,66995.0,1.34587824]
[1722328859842,0.02425042,66996.0,66995.0,2.19435563]
[1722328859843,0.00083,66996.0,66995.0,2.19435563]
[1722328860793,0.00083,66996.0,66995.0,2.19526173]
[1722328861669,0.00083,66996.0,66995.0,2.51379073]
[1722328862079,0.00083,66996.0,66995.0,2.21526173]
[1722328862279,0.00083,66996.0,66995.0,2.21525949]
[1722328862787,0.00083,66996.0,66995.0,2.21725949]
[1722328863121,0.00083,66996.0,66995.0,2.51578849]
[1722328863332,0.00083,66996.0,66995.0,2.51578871]
[1722328866713,0.02424715,66996.0,66995.0,2.51578866]
[1722328869945,1.5e-07,66996.0,66995.0,3.02941313]
[1722328870143,0.00083,67001.0,67000.0,1.550831]
[1722328870359,0.00083,67001.0,67000.0,2.17790346]
[1722328870517,0.00083,67001.0,67000.0,2.48957227]
[1722328871565,0.00083,67001.0,67000.0,2.50357227]
[1722328871988,0.00083,67001.0,67000.0,2.80207927]
[1722328872191,0.00083,67001.0,67000.0,2.84686448]
[1722328872393,0.00083,67001.0,67000.0,2.86086448]
[1722328873181,0.00083,67001.0,67000.0,2.98983476]
[1722328873588,0.00083,67001.0,67000.0,3.03456853]
[1722328873788,0.00083,67001.0,67000.0,3.03430434]
[1722328874442,0.00083,67001.0,67000.0,2.86078489]
[1722328874443,1e-06,67001.0,67000.0,2.86078489]
[1722328874651,1e-06,67001.0,67000.0,3.38781713]
[1722328874983,0.00083,67007.0,67006.0,1.70359]
[1722328875183,0.00083,67007.0,67006.0,2.4137085]
[1722328875430,0.00083,67007.0,67006.0,2.4268518]
[1722328875582,0.49753009,67036.0,67022.0,1.34284]
[1722328875583,0.0613,67025.0,67022.0,1.34284]
[1722328875809,0.0613,67025.0,67022.0,1.59347304]
[1722328876248,0.0613,67025.0,67022.0,1.60661634]
[1722328876452,0.0613,67025.0,67022.0,1.75731066]
[1722328877713,0.0613,67025.0,67022.0,1.77031066]
[1722328877967,0.1416,67028.0,67022.0,1.79431066]
[1722328878566,0.1416,67028.0,67022.0,1.76731066]
[1722328878773,0.061,67028.0,67022.0,1.76731066]
[1722328878946,0.082,67031.0,67022.0,1.94302534]
[1722328879145,0.1422,67031.0,67022.0,1.96602534]
[1722328879950,0.1422,67031.0,67022.0,1.97501196]
[1722328880350,0.0664,67033.0,67022.0,1.97501196]
[1722328880556,0.0664,67033.0,67022.0,1.67660296]
[1722328880557,0.44444115,67032.0,67022.0,1.67660296]
[1722328880905,0.08644903,67023.0,67022.0,1.67660296]
[1722328881048,0.08644903,67023.0,67022.0,1.64461634]
[1722328881049,0.06304,67023.0,67022.0,1.64461634]
[1722328883026,0.06304,67023.0,67022.0,1.65340659]
[1722328883989,0.08644961,67023.0,67022.0,1.65340659]
[1722328884711,0.08644961,67023.0,67022.0,1.73110426]
[1722328885705,0.02424961,67023.0,67022.0,1.73110426]
[1722328887828,0.02424961,67023.0,67022.0,1.85510145]
[1722328888042,0.02424961,67023.0,67022.0,1.85350378]
[1722328889426,0.02424961,67023.0,67022.0,1.85350302]
[1722328889826,0.00084,67023.0,67022.0,1.85350302]
[1722328892693,0.024249,67023.0,67022.0,1.85350335]
[1722328893098,0.00084,67023.0,67022.0,1.85350335]
[1722328893299,0.00084,67023.0,67022.0,2.00419767]
[1722328893501,0.00084,67023.0,67022.0,2.32560667]
[1722328893755,0.00084,67023.0,67022.0,2.34560667]
[1722328893923,0.00084,67023.0,67022.0,2.54420667]
[1722328894614,0.00084,67023.0,67022.0,2.60530667]
[1722328895195,0.00084,67023.0,67022.0,2.60529636]
[1722328895396,0.00084,67023.0,67022.0,2.45460204]
[1722328896080,0.00084,67023.0,67022.0,2.45460319]
[1722328896255,0.00084,67023.0,67022.0,2.43260319]
[1722328896654,0.02424846,67023.0,67022.0,2.43260319]
[1722328898034,0.00084,67023.0,67022.0,2.63324751]
[1722328898220,0.00084,67023.0,67022.0,2.8059633]
[1722328898452,0.00841,67036.0,67022.0,2.8059633]
[1722328898453,0.00841,67036.0,67025.0,1.839328]
[1722328898655,0.00841,67036.0,67025.0,2.30966443]
[1722328898784,0.00841,67036.0,67025.0,2.42256027]
[1722328898983,0.00841,67036.0,67025.0,2.87165059]
[1722328899386,0.00841,67036.0,67025.0,2.87208893]
[1722328900704,0.00841,67036.0,67025.0,2.88608893]
[1722328901323,0.00841,67036.0,67035.0,1.68088]
[1722328901526,0.00841,67036.0,67035.0,2.23598333]
[1722328901742,0.00841,67036.0,67035.0,2.32545184]
[1722328901910,0.00841,67036.0,67035.0,2.33834768]
[1722328902498,0.00841,67036.0,67035.0,2.31634768]
[1722328902702,0.00841,67036.0,67035.0,2.33634054]
[1722328902945,0.00841,67036.0,67035.0,2.35234054]
[1722328903145,0.00841,67036.0,67035.0,1.98140888]
[1722328903362,0.00841,67036.0,67035.0,1.80702103]
[1722328903572,0.06991,67036.0,67035.0,1.78402103]
[1722328903743,0.06991,67036.0,67035.0,1.79802103]
[1722328904680,0.09331541,67036.0,67035.0,1.79802103]
[1722328905856,0.09331541,67036.0,67035.0,1.66405788]
[1722328906067,0.09331541,67036.0,67035.0,1.78802861]
[1722328906638,0.09331541,67036.0,67035.0,1.45972761]
[1722328906782,0.09331541,67036.0,67035.0,0.04089584]
[1722328906783,0.17101541,67036.0,67035.0,0.04089584]
[1722328906989,0.14761,67036.0,67035.0,0.48842184]
[1722328907407,0.14761,67036.0,67035.0,0.04089584]
[1722328907613,0.14761,67036.0,67035.0,0.19905384]
[1722328907926,0.14761,67036.0,67035.0,0.02187884]
[1722328908131,0.14761,67036.0,67035.0,0.19905384]
[1722328908374,0.14761,67036.0,67035.0,0.18505384]
[1722328908544,0.20802745,67036.0,67035.0,0.02187884]
[1722328908744,0.14761,67036.0,67035.0,0.17505384]
[1722328909349,0.14761,67036.0,67035.0,0.17605384]
[1722328909829,0.14761,67036.0,67035.0,0.16207084]
[1722328909965,0.14761,67036.0,67035.0,0.17107084]
[1722328910168,0.17101771,67036.0,67035.0,0.17107084]
[1722328910531,0.17101771,67036.0,67035.0,0.16207084]
[1722328910735,0.14761,67036.0,67035.0,0.17407084]
[1722328910936,0.14761,67036.0,67035.0,0.18407084]
[1722328911379,0.14761,67036.0,67035.0,0.03489584]
[1722328911854,0.14761,67036.0,67035.0,0.18407084]
[1722328913785,0.1710184,67036.0,67035.0,0.03489584]
[1722328914324,0.23287074,67036.0,67035.0,0.03489584]
[1722328915861,0.97873774,67036.0,67035.0,0.03489584]
[1722328916098,0.9168854,67036.0,67035.0,0.03489584]
[1722328916305,1.29110671,67036.0,67035.0,0.022]
[1722328916622,1.23241485,67036.0,67035.0,0.022]
[1722328916799,1.24118988,67036.0,67035.0,0.01]
[1722328916937,1.4018842,67036.0,67035.0,0.01]
[1722328917137,1.4018842,67036.0,67015.0,0.07534716]
[1722328917138,0.4476,67024.0,67018.0,0.149212]
[1722328917351,0.5899,67024.0,67019.0,0.149211]
[1722328917558,0.5899,67024.0,67023.0,0.0871911]
[1722328917756,0.5899,67024.0,67023.0,0.07534716]
[1722328917757,0.63453491,67024.0,67023.0,0.07534716]
[1722328918071,0.33613491,67024.0,67023.0,0.07534716]
[1722328918274,0.33613491,67024.0,67023.0,0.08720515]
[1722328918490,0.1423,67024.0,67023.0,0.08720515]
[1722328918695,0.1423,67024.0,67023.0,0.10120515]
[1722328919565,0.1423,67024.0,67023.0,0.11520515]
[1722328919988,0.1423,67024.0,67023.0,0.26440715]
[1722328921555,0.1423,67024.0,67023.0,0.11520515]
[1722328922075,0.1423,67024.0,67023.0,0.26440715]
[1722328922691,0.1423,67024.0,67023.0,0.11520515]
[1722328923477,0.2915,67024.0,67023.0,0.11520515]
[1722328924084,0.31491227,67024.0,67023.0,0.11520515]
[1722328924495,0.31491227,67024.0,67023.0,0.10334716]
[1722328924694,0.16571227,67024.0,67023.0,0.11520515]
[1722328925444,0.31491227,67024.0,67023.0,0.11520515]
[1722328925723,0.3763991,67024.0,67023.0,0.10334716]
[1722328925871,0.2271991,67024.0,67023.0,0.10334716]
[1722328926068,0.16726647,67024.0,67023.0,0.11520515]
[1722328926359,0.1438542,67024.0,67023.0,0.11520515]
[1722328926537,0.1438542,67024.0,67023.0,0.11611815]
[1722328927078,0.1423,67024.0,67023.0,0.11611815]
[1722328927505,0.1438542,67024.0,67023.0,0.11611815]
[1722328927957,0.1423,67024.0,67023.0,0.11611815]
[1722328928133,0.00083,67026.0,67025.0,0.149198]
[1722328928337,0.00083,67026.0,67025.0,0.75786394]
[1722328929378,0.00083,67026.0,67025.0,0.76986394]
[1722328929579,0.02423963,67026.0,67025.0,0.76986394]
[1722328929862,0.02423963,67026.0,67025.0,0.78286394]
[1722328930666,0.00083,67026.0,67025.0,0.78286394]
[1722328932415,0.00083,67026.0,67025.0,0.48446794]
[1722328932621,0.0023842,67026.0,67025.0,0.48446794]
[1722328932799,0.0023842,67026.0,67025.0,0.18607194]
[1722328933203,0.0023842,67026.0,67025.0,0.03687394]
[1722328933204,0.00083,67026.0,67025.0,0.03687394]
[1722328934041,0.02424073,67026.0,67025.0,0.03687394]
[1722328934264,0.02529128,67026.0,67025.0,0.03687394]
[1722328934484,0.49927653,67026.0,67025.0,0.03687394]
[1722328934684,0.885707,67026.0,67025.0,0.03687394]
[1722328934933,0.885707,67026.0,67025.0,0.025]
[1722328936139,0.587316,67026.0,67025.0,0.025]
[1722328937828,0.61072775,67026.0,67025.0,0.025]
[1722328938063,0.587316,67026.0,67025.0,0.025]
[1722328938918,0.587316,67026.0,67025.0,0.03637468]
[1722328939296,0.587316,67026.0,67025.0,0.025]
[1722328941280,0.61072814,67026.0,67025.0,0.025]
[1722328942373,0.587316,67026.0,67025.0,0.0358961]
[1722328943950,0.288925,67026.0,67025.0,0.0358961]
[1722328945740,0.31233669,67026.0,67025.0,0.0358961]
[1722328945948,0.13973,67026.0,67025.0,0.0358961]
[1722328946157,0.288925,67026.0,67025.0,0.0358961]
[1722328947889,0.72891846,67026.0,67025.0,0.0358961]
[1722328948118,0.72891846,67026.0,67025.0,0.025]
[1722328949258,0.83102957,67026.0,67025.0,0.025]
[1722328949460,0.53263857,67026.0,67025.0,0.03541373]
[1722328949603,0.55378144,67026.0,67025.0,0.03541373]
[1722328950224,1.41440046,67026.0,67025.0,0.03541373]
[1722328950625,1.40440247,67026.0,67025.0,0.025]
[1722328951274,1.40461919,67026.0,67025.0,0.012]
[1722328951595,1.40461919,67026.0,67025.0,0.006]
[1722328951889,1.40561919,67026.0,67025.0,0.006]
[1722328952432,1.54950339,67026.0,67025.0,0.006]
[1722328952878,1.0444,67024.0,67023.0,0.000913]
[1722328953080,1.34134274,67024.0,67023.0,0.000913]
[1722328953480,1.22899139,67024.0,67023.0,0.000913]
[1722328954163,1.22899139,67024.0,67023.0,0.005913]
[1722328954164,1.22942758,67024.0,67023.0,0.005913]
[1722328954339,1.25284092,67024.0,67023.0,0.005913]
[1722328954551,1.22942758,67024.0,67023.0,0.005913]
[1722328954941,1.22942758,67024.0,67023.0,0.001913]
[1722328955162,1.22942758,67024.0,67023.0,0.000913]
[1722328956135,0.55492758,67024.0,67023.0,0.000913]
[1722328956465,0.55492758,67024.0,67023.0,0.003913]
[1722328956466,0.25652758,67024.0,67023.0,0.003913]
[1722328956666,0.0015542,67024.0,67023.0,0.003913]
[1722328956869,0.09087717,67024.0,67023.0,0.01434157]
[1722328957080,0.02341308,67024.0,67023.0,0.079513]
[1722328957283,0.02341308,67024.0,67023.0,0.01434157]
[1722328957284,0.2619366,67024.0,67023.0,0.01434157]
[1722328957667,0.62540462,67024.0,67023.0,0.01434157]
[1722328957864,0.45651356,67024.0,67023.0,0.01434157]
[1722328958070,0.2474478,67024.0,67023.0,0.01434157]
[1722328958277,0.15811356,67024.0,67023.0,0.01434157]
[1722328958477,0.26976797,67024.0,67023.0,0.01434157]
[1722328958713,0.36315577,67024.0,67023.0,0.01434157]
[1722328958852,1.03344192,67024.0,67023.0,0.01434157]
[1722328959105,1.03344192,67024.0,67023.0,0.003913]
[1722328960479,1.16750197,67024.0,67023.0,0.003913]
[1722328960678,1.66260197,67024.0,67023.0,0.003913]
[1722328961043,1.6191492,67024.0,67023.0,0.003913]
[1722328961255,1.68590795,67024.0,67023.0,0.003913]
[1722328961453,1.52844667,67024.0,67023.0,0.003913]
[1722328962351,1.83684667,67024.0,67023.0,0.003913]
[1722328962620,1.98765049,67024.0,67023.0,0.003913]
[1722328962859,2.01461079,67024.0,67023.0,0.003913]
[1722328963064,2.01445364,67024.0,67023.0,0.003913]
[1722328963406,2.01445364,67024.0,67023.0,0.000913]
[1722328963811,2.01445371,67024.0,67023.0,0.000913]
[1722328964189,2.01645371,67024.0,67023.0,0.000913]
[1722328964719,2.08286972,67024.0,67023.0,0.000913]
[1722328964921,2.08086972,67024.0,67023.0,0.000913]
[1722328965141,2.08108695,67024.0,67023.0,0.000913]
[1722328965340,2.38148695,67024.0,67023.0,0.001913]
[1722328965538,2.38148695,67024.0,67023.0,0.001]
[1722328966534,2.38248695,67024.0,67023.0,0.002]
[1722328966949,2.38219433,67024.0,67023.0,0.002]
[1722328967181,2.28880653,67024.0,67023.0,0.002]
[1722328968978,2.26539052,67024.0,67023.0,0.002]
[1722328970299,2.26539105,67024.0,67023.0,0.002]
[1722328970847,2.26539429,67024.0,67023.0,0.002]
[1722328972363,2.28881131,67024.0,67023.0,0.002]
[1722328972568,2.41608861,67024.0,67023.0,0.002]
[1722328972766,2.41627199,67024.0,67023.0,0.002]
[1722328973393,2.56670486,67024.0,67023.0,0.002]
[1722328973589,2.44564064,67024.0,67023.0,0.002]
[1722328973929,2.56664704,67024.0,67023.0,0.002]
[1722328974581,0.149235,67008.0,67003.0,0.07534716]
[1722328974738,0.98607566,67008.0,67003.0,0.07534716]
[1722328974937,1.28454666,67008.0,67003.0,0.07534716]
[1722328975147,1.39597025,67008.0,67003.0,0.07534716]
[1722328975341,1.28454666,67008.0,67003.0,0.07534716]
[1722328975542,1.54666457,67008.0,67003.0,0.07534716]
[1722328975926,1.5700836,67008.0,67007.0,0.010913]
[1722328976128,1.54666457,67008.0,67007.0,0.010913]
[1722328976897,1.4355282,67008.0,67007.0,0.004913]
[1722328977098,1.54694309,67008.0,67007.0,0.004913]
[1722328977305,1.4355282,67008.0,67007.0,0.001913]
[1722328977441,1.54894309,67008.0,67007.0,0.001913]
[1722328979088,1.57236205,67008.0,67007.0,0.001913]
[1722328980218,1.57236892,67008.0,67007.0,0.001913]
[1722328980646,1.52887425,67008.0,67007.0,0.001913]
[1722328980854,1.57236862,67008.0,67007.0,0.001913]
[1722328981374,1.58138687,67008.0,67007.0,0.001913]
[1722328981545,1.59142328,67008.0,67007.0,0.001913]
[1722328981789,1.58138105,67008.0,67007.0,0.001913]
[1722328982361,1.46993767,67008.0,67007.0,0.001913]
[1722328982539,1.58148376,67008.0,67007.0,0.001913]
[1722328982736,1.58148373,67008.0,67007.0,0.001913]
[1722328984542,1.38478373,67008.0,67007.0,0.001913]
[1722328984933,1.08631273,67008.0,67007.0,0.001913]
[1722328985132,1.27332005,67008.0,67007.0,0.001913]
[1722328985648,1.24990109,67008.0,67007.0,0.001913]
[1722328985847,1.36173052,67008.0,67007.0,0.001913]
[1722328985961,1.25026684,67008.0,67007.0,0.001913]
[1722328986419,1.36173052,67008.0,67007.0,0.001913]
[1722328987904,1.25026684,67008.0,67007.0,0.001913]
[1722328988288,1.36173052,67008.0,67007.0,0.001913]
[1722328988996,1.36172564,67008.0,67007.0,0.001913]
[1722328991177,1.36173191,67008.0,67007.0,0.001913]
[1722328991392,1.25026196,67008.0,67007.0,0.001913]
[1722328992309,1.2499851,67008.0,67007.0,0.001913]
[1722328992969,1.27340401,67008.0,67007.0,0.001913]
[1722328993412,1.34980401,67008.0,67007.0,0.001913]
[1722328995016,1.3499438,67008.0,67007.0,0.001913]
[1722328995744,1.35001151,67008.0,67007.0,0.001913]
[1722328998988,1.34988447,67008.0,67007.0,0.001913]
[1722329000226,1.32646556,67008.0,67007.0,0.001913]
[1722329002257,1.32642887,67008.0,67007.0,0.001913]
[1722329003336,1.3264241,67008.0,67007.0,0.001913]
[1722329003566,1.48384494,67008.0,67007.0,0.001913]
[1722329004234,1.34984267,67008.0,67007.0,0.001913]
[1722329004488,1.2500241,67008.0,67007.0,0.001913]
[1722329004687,1.09932978,67008.0,67007.0,0.001913]
[1722329004894,1.17572978,67008.0,67007.0,0.001913]
[1722329005115,0.87725878,67008.0,67007.0,0.063213]
[1722329005491,0.83359525,67008.0,67007.0,0.063213]
[1722329005733,0.87766639,67008.0,67007.0,0.063213]
[1722329006292,0.57919539,67008.0,67007.0,0.138313]
[1722329006553,0.18024362,67008.0,67007.0,0.89503896]
[1722329006706,0.04607114,67008.0,67007.0,0.89503896]
[1722329006907,0.04607114,67008.0,67007.0,1.19351496]
[1722329007122,0.15788588,67008.0,67007.0,1.19351496]
[1722329007718,0.02341701,67008.0,67007.0,1.19351496]
[1722329007918,0.02341701,67008.0,67007.0,1.19251496]
[1722329007919,0.09055031,67008.0,67007.0,1.19251496]
[1722329008119,0.04474231,67008.0,67007.0,1.20251496]
[1722329008318,0.28338548,67018.0,67007.0,0.31392496]
[1722329008319,0.08952132,67010.0,67007.0,0.31392496]
[1722329008558,0.08952132,67010.0,67009.0,0.295633]
[1722329008759,0.11181474,67011.0,67010.0,0.295631]
[1722329008973,0.0764,67012.0,67011.0,0.149229]
[1722329009179,0.0764,67012.0,67010.0,0.0634]
[1722329009464,0.0764,67012.0,67011.0,0.15504716]
[1722329009697,0.17117497,67012.0,67011.0,0.30427616]
[1722329009811,0.12730768,67012.0,67011.0,0.31479789]
[1722329010016,0.05090768,67012.0,67011.0,0.31479789]
[1722329010210,0.12730768,67012.0,67011.0,0.31479789]
[1722329010416,0.12830768,67012.0,67011.0,0.31479789]
[1722329010715,0.12730768,67012.0,67011.0,0.31479789]
[1722329010916,0.15072417,67012.0,67011.0,0.31479789]
[1722329011160,0.15172417,67012.0,67011.0,0.32079789]
[1722329012138,0.15172417,67012.0,67011.0,0.32879789]
[1722329012545,0.12830768,67012.0,67011.0,0.32879789]
[1722329012778,0.12830768,67012.0,67011.0,0.17956889]
[1722329013490,0.27753468,67012.0,67011.0,0.17956889]
[1722329013806,0.12830768,67012.0,67011.0,0.17956889]
[1722329014382,0.24011699,67012.0,67011.0,0.17956889]
[1722329014570,0.24012156,67012.0,67011.0,0.17956889]
[1722329015495,0.12830768,67012.0,67011.0,0.17956889]
[1722329015828,0.26352658,67012.0,67011.0,0.17956889]
[1722329016199,0.24011009,67012.0,67011.0,0.17956889]
[1722329017601,0.12830768,67012.0,67011.0,0.17956889]
[1722329017817,0.24011009,67012.0,67011.0,0.17956889]
[1722329018408,0.12830768,67012.0,67011.0,0.17956889]
[1722329018807,0.24009361,67012.0,67011.0,0.17956889]
[1722329019461,0.68776866,67012.0,67011.0,0.17956889]
[1722329019617,0.61997764,67012.0,67011.0,0.17956889]
[1722329020020,1.21688564,67012.0,67011.0,0.02452173]
[1722329020418,1.21688564,67012.0,67011.0,0.014]
[1722329020644,1.35100866,67012.0,67011.0,0.014]
[1722329021169,1.36003585,67012.0,67011.0,0.014]
[1722329021564,1.22591283,67012.0,67011.0,0.014]
[1722329022301,1.305675,67012.0,67011.0,0.014]
[1722329022630,1.41936669,67012.0,67011.0,0.014]
[1722329022837,1.32909852,67012.0,67011.0,0.014]
[1722329023452,1.62755252,67012.0,67011.0,0.014]
[1722329023677,1.63755252,67012.0,67011.0,0.014]
[1722329023829,1.70095252,67012.0,67011.0,0.014]
[1722329024237,1.67753559,67012.0,67011.0,0.014]
[1722329024454,1.67753559,67012.0,67011.0,0.006]
[1722329024749,1.67853559,67012.0,67011.0,0.006]
[1722329025151,1.044634,67009.0,67008.0,0.00898695]
[1722329025381,1.31545896,67009.0,67008.0,0.00898695]
[1722329026750,1.32045896,67009.0,67008.0,0.00898695]
[1722329027208,1.62892596,67009.0,67008.0,0.00898695]
[1722329027399,1.69232596,67009.0,67008.0,0.00898695]
[1722329027603,1.71774642,67009.0,67008.0,0.00898695]
[1722329028696,1.70747228,67009.0,67008.0,0.00898695]
[1722329029353,1.63107228,67009.0,67008.0,0.00898695]
[1722329029535,1.70747228,67009.0,67008.0,0.00898695]
[1722329031343,1.68405182,67009.0,67008.0,0.00898695]
[1722329031880,1.68408872,67009.0,67008.0,0.00898695]
[1722329032081,1.044648,67008.0,67007.0,0.000913]
[1722329032434,1.10613483,67008.0,67007.0,0.000913]
[1722329032595,1.14962789,67008.0,67007.0,0.000913]
[1722329033393,1.53659889,67008.0,67007.0,0.000913]
[1722329034038,1.53759889,67008.0,67007.0,0.000913]
[1722329034338,1.53756896,67008.0,67007.0,0.000913]
[1722329034542,1.52756896,67008.0,67007.0,0.000913]
[1722329034811,1.55098827,67008.0,67007.0,0.000913]
[1722329035347,1.55096983,67008.0,67007.0,0.000913]
[1722329035690,1.56096983,67008.0,67007.0,0.000913]
[1722329036128,1.53755052,67008.0,67007.0,0.000913]
[1722329036774,1.52655052,67008.0,67007.0,0.000913]
[1722329037047,1.45405052,67008.0,67007.0,0.000913]
[1722329037249,1.45105052,67008.0,67007.0,0.000913]
[1722329037604,1.09109269,67008.0,67007.0,0.000913]
[1722329037805,1.08809269,67008.0,67007.0,0.000913]
[1722329038344,1.09409269,67008.0,67007.0,0.000913]
[1722329039084,0.79562169,67008.0,67007.0,0.000913]
[1722329039333,0.89544127,67008.0,67007.0,0.146413]
[1722329039744,1.02981522,67008.0,67007.0,0.147413]
[1722329040352,1.03281522,67008.0,67007.0,0.147413]
[1722329040555,0.73434422,67008.0,67007.0,0.147413]
[1722329040718,0.73434422,67008.0,67007.0,0.15794814]
[1722329041124,0.69089953,67008.0,67007.0,0.15794814]
[1722329041397,0.7347416,67008.0,67007.0,0.147413]
[1722329041598,0.89783865,67008.0,67007.0,0.147413]
[1722329041803,0.85399658,67008.0,67007.0,0.147413]
[1722329041987,0.89783664,67008.0,67007.0,0.147413]
[1722329043468,0.89783664,67008.0,67007.0,0.001913]
[1722329043672,1.20630764,67008.0,67007.0,0.001913]
[1722329044098,1.35688905,67008.0,67007.0,0.001913]
[1722329044418,1.35661048,67008.0,67007.0,0.001913]
[1722329046323,1.34661048,67008.0,67007.0,0.001913]
[1722329046823,1.35661048,67008.0,67007.0,0.001913]
[1722329047024,1.3331909,67008.0,67007.0,0.001913]